bitfinex/quotes_SOLUSD_20240705
["timestamp","ask_amount","ask_price","bid_price","bid_amount"]
[1720166123886,5.0708,126.64,126.52,0.17]
[1720166124074,5.0708,126.64,126.53,100.0]
[1720166124285,5.0708,126.64,126.54,0.17]
[1720166124468,0.8599673,126.63,126.52,20.0]
[1720166124782,0.8599673,126.63,126.53,0.17]
[1720166125161,5.0708,126.64,126.55,100.0]
[1720166125361,5.0708,126.64,126.56,0.17]
[1720166125880,5.0708,126.64,126.55,100.0]
[1720166126375,5.0708,126.64,126.54,100.17]
[1720166126577,5.0708,126.64,126.55,20.0]
[1720166126778,5.0708,126.64,126.56,100.17]
[1720166126981,1.3147,126.67,126.61,100.0]
[1720166127184,1.3147,126.67,126.6,0.17]
[1720166127379,1.3147,126.67,126.6,20.17]
[1720166127891,5.0708,126.68,126.61,100.0]
[1720166129608,5.0708,126.68,126.6,20.17]
[1720166129973,5.0708,126.68,126.6,20.0]
[1720166130181,5.0708,126.68,126.58,20.0]
[1720166130371,5.0708,126.68,126.57,20.0]
[1720166130683,5.0708,126.68,126.58,100.0]
[1720166131273,5.0708,126.68,126.6,100.0]
[1720166131768,5.0708,126.68,126.61,0.17]
[1720166132198,5.0708,126.68,126.6,100.0]
[1720166133077,5.0708,126.68,126.59,0.17]
[1720166133286,5.0708,126.68,126.59,20.17]
[1720166133693,5.0708,126.68,126.59,20.0]
[1720166135985,0.8599673,126.67,126.59,20.0]
[1720166136173,0.8599673,126.67,126.57,20.0]
[1720166136376,5.0708,126.68,126.57,20.0]
[1720166136609,0.8599673,126.67,126.57,20.0]
[1720166137134,5.0708,126.68,126.57,20.0]
[1720166137705,5.0708,126.68,126.58,0.17]
[1720166137907,5.0708,126.68,126.58,100.17]
[1720166138108,5.0708,126.68,126.59,20.0]
[1720166138290,1.3147,126.71,126.62,100.0]
[1720166138598,1.3147,126.71,126.63,20.17]
[1720166140399,1.3147,126.71,126.64,1.0893379]
[1720166141609,1.3147,126.71,126.63,20.17]
[1720166142791,1.3147,126.71,126.64,0.86754425]
[1720166143114,1.3147,126.71,126.6,100.0]
[1720166143412,1.3147,126.71,126.62,100.0]
[1720166144220,1.3147,126.71,126.61,0.17]
[1720166144405,2.1746673,126.71,126.61,20.17]
[1720166144924,1.3147,126.71,126.62,100.0]
[1720166145294,1.3147,126.71,126.63,0.17]
[1720166145497,1.3147,126.71,126.64,100.0]
[1720166145703,1.3147,126.71,126.65,0.17]
[1720166145901,1.3147,126.71,126.62,7.8972]
[1720166145902,1.3147,126.71,126.62,200.0]
[1720166146102,1.3147,126.71,126.63,20.0]
[1720166146310,1.3147,126.71,126.64,0.17]
[1720166146709,1.3147,126.71,126.65,100.0]
[1720166147010,1.3147,126.71,126.66,0.17]
[1720166149211,6.3855,126.76,126.67,100.0]
[1720166149412,6.3855,126.76,126.69,100.0]
[1720166149591,6.3855,126.76,126.68,0.17]
[1720166149793,6.3855,126.76,126.68,20.0]
[1720166149994,6.3855,126.76,126.67,35.91]
[1720166150299,6.3855,126.76,126.63,155.91]
[1720166150300,0.8599673,126.75,126.63,155.91]
[1720166150506,0.8599673,126.75,126.64,0.17]
[1720166150822,0.8599673,126.75,126.63,155.91]
[1720166151418,35.91,126.74,126.61,135.91]
[1720166151720,0.8599673,126.75,126.61,135.91]
[1720166151721,0.8599673,126.75,126.63,100.0]
[1720166152813,35.91,126.74,126.61,135.91]
[1720166153017,0.8599673,126.73,126.62,20.0]
[1720166153515,0.8599673,126.73,126.61,135.91]
[1720166154309,6.3855,126.72,126.61,35.91]
[1720166154613,35.91,126.7,126.62,1.57868651]
[1720166154796,5.0708,126.67,126.57,35.91]
[1720166155002,0.8599673,126.66,126.55,35.91]
[1720166155188,0.8599673,126.66,126.55,42.12518303]
[1720166155402,0.8599673,126.66,126.56,5.0708]
[1720166157221,5.9307673,126.67,126.56,105.0708]
[1720166157728,5.9307673,126.67,126.57,20.17]
[1720166159222,37.2247,126.66,126.53,291.21]
[1720166159392,0.8599673,126.65,126.53,291.21]
[1720166160127,9.11999327,126.65,126.53,291.21]
[1720166160330,9.11999327,126.65,126.53,35.91]
[1720166160614,6.3855,126.64,126.52,135.91]
[1720166160823,0.8599673,126.63,126.52,135.91]
[1720166161200,0.8599673,126.63,126.52,35.91]
[1720166161398,0.8599673,126.62,126.52,35.91]
[1720166161700,36.7699673,126.62,126.5,135.91]
[1720166161905,36.7699673,126.62,126.5,35.91]
[1720166162107,36.7699673,126.62,126.49,0.04684502]
[1720166162424,40.9808,126.6,126.49,0.04684502]
[1720166162627,0.8599673,126.59,126.49,0.04684502]
[1720166163412,36.7699673,126.59,126.49,0.04684502]
[1720166164215,5.0708,126.6,126.51,100.0]
[1720166164435,5.0708,126.6,126.53,35.91]
[1720166164800,0.8599673,126.59,126.49,100.04684502]
[1720166165000,0.8599673,126.59,126.5,55.91]
[1720166165228,5.9307673,126.6,126.5,55.91]
[1720166165410,5.0708,126.6,126.51,100.17]
[1720166166330,5.0708,126.6,126.53,100.0]
[1720166166535,1.3147,126.61,126.55,100.0]
[1720166166707,1.3147,126.61,126.56,35.91]
[1720166167216,1.3147,126.61,126.54,56.08]
[1720166167433,1.3147,126.61,126.54,55.91]
[1720166167728,1.3147,126.61,126.54,20.0]
[1720166167916,1.3147,126.61,126.55,100.0]
[1720166168304,5.0708,126.64,126.58,100.0]
[1720166168505,5.0708,126.64,126.59,1.50668916]
[1720166168717,5.0708,126.64,126.58,100.0]
[1720166168921,5.0708,126.64,126.56,100.17]
[1720166169125,5.0708,126.64,126.58,100.0]
[1720166170031,5.0708,126.64,126.56,100.17]
[1720166170333,5.0708,126.64,126.57,20.0]
[1720166170536,5.0708,126.64,126.58,100.17]
[1720166171427,5.0708,126.64,126.59,20.0]
[1720166172042,5.0708,126.64,126.58,0.17]
[1720166172438,5.0708,126.64,126.57,25.0708]
[1720166172639,5.0708,126.64,126.57,5.0708]
[1720166172848,0.8599673,126.63,126.57,5.0708]
[1720166173044,0.8599673,126.63,126.52,490.1]
[1720166173447,0.8599673,126.62,126.52,105.0708]
[1720166173645,1.3147,126.61,126.52,5.0708]
[1720166173847,0.8599673,126.6,126.49,7.8919456]
[1720166174036,0.8599673,126.6,126.5,5.0708]
[1720166174941,0.8599673,126.59,126.49,0.04684502]
[1720166175132,0.8599673,126.59,126.49,5.11764502]
[1720166175333,0.8599673,126.59,126.49,105.11764502]
[1720166175831,0.8599673,126.59,126.49,0.04684502]
[1720166176152,0.8599673,126.6,126.49,3.21105502]
[1720166176951,0.8599673,126.59,126.49,3.21105502]
[1720166177127,2.1746673,126.61,126.5,100.17]
[1720166177928,1.3147,126.61,126.51,20.0]
[1720166178145,1.3147,126.61,126.52,0.17]
[1720166178536,1.3147,126.61,126.55,100.0]
[1720166178742,1.3147,126.61,126.56,0.17]
[1720166179329,6.3855,126.64,126.56,0.17]
[1720166179949,6.3855,126.64,126.57,100.0]
[1720166180138,6.3855,126.64,126.58,0.17]
[1720166180538,1.3147,126.64,126.59,100.0]
[1720166180750,1.3147,126.64,126.6,0.17]
[1720166180933,5.0708,126.68,126.6,20.17]
[1720166180934,6.3855,126.68,126.6,20.17]
[1720166182448,0.8599673,126.67,126.58,20.0]
[1720166182625,6.3855,126.68,126.57,106.2306284]
[1720166182821,6.3855,126.68,126.59,100.0]
[1720166183840,6.3855,126.68,126.6,0.17]
[1720166185029,6.3855,126.68,126.59,0.17]
[1720166186446,6.3855,126.68,126.59,100.17]
[1720166186643,6.3855,126.68,126.6,20.0]
[1720166186845,6.3855,126.68,126.61,0.17]
[1720166187739,6.3855,126.68,126.61,100.17]
[1720166188341,6.3855,126.68,126.61,0.17]
[1720166189644,6.3855,126.68,126.61,100.17]
[1720166190546,6.3855,126.68,126.62,20.0]
[1720166191842,1.3147,126.72,126.63,0.17]
[1720166192183,1.3147,126.72,126.67,100.0]
[1720166192464,1.3147,126.72,126.65,100.0]
[1720166192465,1.3147,126.72,126.68,36.12]
[1720166192645,1.3147,126.72,126.68,0.17]
[1720166193562,1.3147,126.72,126.67,35.95]
[1720166193763,1.3147,126.72,126.66,20.0]
[1720166194481,1.3147,126.72,126.63,135.95]
[1720166194784,1.3147,126.72,126.64,20.0]
[1720166195963,1.3147,126.72,126.63,20.0]
[1720166196371,1.3147,126.72,126.64,0.17]
[1720166198279,1.3147,126.72,126.63,20.0]
[1720166198280,2.1746673,126.72,126.63,20.0]
[1720166198491,2.1746673,126.72,126.62,20.0]
[1720166199571,2.1746673,126.72,126.63,0.17]
[1720166199880,2.1746673,126.72,126.6,63.25826667]
[1720166200055,2.1746673,126.72,126.6,14.24251358]
[1720166200263,1.3147,126.7,126.57,108.58575309]
[1720166200581,0.8599673,126.69,126.57,108.58575309]
[1720166200887,0.8599673,126.68,126.57,100.0]
[1720166201386,0.8599673,126.68,126.55,153.66790075]
[1720166201678,0.8599673,126.68,126.56,5.2408]
[1720166201876,0.8599673,126.69,126.57,100.0]
[1720166202060,0.8599673,126.68,126.57,100.0]
[1720166202261,0.8599673,126.68,126.58,0.17]
[1720166203068,1.3147,126.7,126.58,0.17]
[1720166203069,0.8599673,126.69,126.58,0.17]
[1720166203386,6.3855,126.67,126.56,5.2408]
[1720166203564,6.3855,126.67,126.55,114.05687399]
[1720166203565,0.8599673,126.66,126.55,6.21177341]
[1720166203765,0.8599673,126.65,126.54,208.58575309]
[1720166203967,0.8599673,126.65,126.55,20.0]
[1720166204469,0.8599673,126.65,126.55,5.2408]
[1720166204697,0.8599673,126.65,126.53,8.25827902]
[1720166204698,1.3147,126.64,126.53,8.25827902]
[1720166204882,5.0708,126.62,126.52,7.84510058]
[1720166205086,5.0708,126.62,126.51,22.20857061]
[1720166205087,0.8599673,126.61,126.51,22.20857061]
[1720166205760,0.8599673,126.61,126.5,8.58575309]
[1720166205761,1.3147,126.6,126.5,8.58575309]
[1720166205990,1.3147,126.6,126.51,100.0]
[1720166206171,0.8599673,126.59,126.5,13.65655309]
[1720166207090,0.8599673,126.59,126.51,20.0]
[1720166210303,0.8599673,126.59,126.49,6.25543943]
[1720166210594,5.0708,126.58,126.49,6.25543943]
[1720166210975,5.0708,126.58,126.5,100.0]
[1720166211777,5.0708,126.58,126.51,20.17]
[1720166212207,5.0708,126.58,126.51,20.0]
[1720166212394,5.0708,126.58,126.5,100.0]
[1720166213290,5.0708,126.58,126.51,0.17]
[1720166213894,5.0708,126.58,126.49,0.04684502]
[1720166214075,5.0708,126.58,126.49,20.04684502]
[1720166214396,5.0708,126.58,126.5,0.17]
[1720166215406,5.0708,126.58,126.51,100.0]
[1720166215580,5.0708,126.58,126.52,20.17]
[1720166215914,5.0708,126.58,126.51,36.01]
[1720166216079,5.0708,126.58,126.5,0.17]
[1720166216408,5.0708,126.58,126.49,8.30938065]
[1720166216409,1.3147,126.56,126.49,8.30938065]
[1720166216698,1.3147,126.56,126.49,0.04684502]
[1720166217273,0.8599673,126.55,126.49,0.04684502]
[1720166217889,6.3855,126.54,126.49,0.04684502]
[1720166218098,2.1746673,126.54,126.47,0.8579673]
[1720166219190,5.0239,126.53,126.47,0.8579673]
[1720166219398,0.8599673,126.52,126.47,0.8579673]
[1720166219577,5.8838673,126.53,126.47,0.8579673]
[1720166219776,5.0239,126.53,126.47,0.8579673]
[1720166220078,0.8599673,126.52,126.47,0.8579673]
[1720166220272,5.0239,126.53,126.47,0.8579673]
[1720166225097,0.8599673,126.52,126.47,0.8579673]
[1720166226483,0.8599673,126.51,126.47,0.8579673]
[1720166226884,1.3147,126.5,126.44,0.2076821]
[1720166227093,1.3147,126.48,126.44,0.2076821]
[1720166227409,0.8599673,126.47,126.44,0.2076821]
[1720166227611,1.3147,126.48,126.44,0.2076821]
[1720166228104,4.1659,126.47,126.44,0.2076821]
[1720166228315,0.8599673,126.46,126.44,0.2076821]
[1720166229306,0.8599673,126.46,126.36,4.1659]
[1720166229488,0.8599673,126.46,126.37,100.0]
[1720166229695,4.1659,126.47,126.37,100.0]
[1720166230216,4.1659,126.47,126.37,107.9131]
[1720166230509,4.1659,126.47,126.39,107.9119]
[1720166230713,4.1659,126.47,126.4,0.17]
[1720166230918,4.1659,126.47,126.4,20.17]
[1720166231098,4.1659,126.47,126.4,0.17]
[1720166231902,5.273,126.51,126.41,100.0]
[1720166232114,1.3147,126.51,126.44,100.0]
[1720166232287,1.3147,126.54,126.45,20.17]
[1720166234019,1.3147,126.54,126.46,200.0]
[1720166234184,1.3147,126.58,126.52,19.7589]
[1720166234379,1.3147,126.58,126.53,0.17]
[1720166234803,3.9583,126.59,126.53,0.17]
[1720166234804,1.3147,126.61,126.53,100.17]
[1720166234986,1.3147,126.61,126.54,20.0]
[1720166236206,1.3147,126.61,126.53,20.17]
[1720166236590,1.3147,126.61,126.53,0.17]
[1720166236904,1.3147,126.61,126.52,0.17]
[1720166237921,1.3147,126.61,126.54,100.0]
[1720166238086,1.3147,126.61,126.55,20.17]
[1720166238607,3.9583,126.63,126.56,100.0]
[1720166238812,3.9583,126.63,126.57,20.17]
[1720166239108,3.9583,126.63,126.57,100.17]
[1720166239407,3.9583,126.63,126.57,0.17]
[1720166239609,3.9583,126.63,126.55,120.0]
[1720166239610,3.9583,126.63,126.56,0.17]
[1720166239911,3.9583,126.63,126.55,120.0]
[1720166240204,0.8599673,126.62,126.55,20.0]
[1720166240402,0.8599673,126.62,126.54,0.17]
[1720166240584,0.8599673,126.62,126.53,0.17]
[1720166241684,0.8599673,126.62,126.52,20.0]
[1720166241885,0.8599673,126.62,126.52,100.0]
[1720166242188,0.8599673,126.62,126.53,20.0]
[1720166242487,0.8599673,126.62,126.52,100.0]
[1720166242823,3.9583,126.63,126.54,100.0]
[1720166243007,1.3147,126.64,126.56,100.0]
[1720166243311,1.3147,126.64,126.57,0.17]
[1720166243487,1.3147,126.64,126.57,20.17]
[1720166243683,1.3147,126.64,126.57,20.0]
[1720166244118,1.3147,126.64,126.55,23.9583]
[1720166244287,1.3147,126.64,126.56,0.17]
[1720166244610,1.3147,126.64,126.57,100.0]
[1720166244918,1.3147,126.64,126.55,123.9583]
[1720166244919,1.3147,126.64,126.58,20.17]
[1720166245210,1.3147,126.64,126.57,100.0]
[1720166245511,1.3147,126.64,126.58,20.17]
[1720166246987,3.9583,126.67,126.61,100.0]
[1720166247192,8.25780969,126.71,126.61,100.0]
[1720166247193,5.273,126.71,126.63,100.0]
[1720166247414,5.273,126.71,126.64,20.17]
[1720166248613,5.273,126.76,126.65,100.0]
[1720166248797,5.273,126.76,126.66,20.17]
[1720166248798,0.8599673,126.75,126.66,20.17]
[1720166249000,5.273,126.76,126.66,20.17]
[1720166249215,0.8599673,126.75,126.66,20.17]
[1720166249516,5.273,126.76,126.66,20.17]
[1720166249733,5.273,126.76,126.67,100.0]
[1720166249920,5.273,126.76,126.68,20.17]
[1720166250417,5.273,126.76,126.68,20.0]
[1720166250618,5.273,126.76,126.67,0.17]
[1720166250805,0.8599673,126.75,126.66,20.0]
[1720166251008,0.8599673,126.75,126.65,20.17]
[1720166252422,0.8599673,126.75,126.64,20.0]
[1720166252895,0.8599673,126.75,126.63,100.0]
[1720166253090,0.17,126.74,126.62,17.39790922]
[1720166253318,0.8599673,126.73,126.62,9.55280864]
[1720166254316,3.9583,126.71,126.62,9.55280864]
[1720166254494,3.9583,126.71,126.62,100.0]
[1720166255617,3.9583,126.71,126.63,20.0]
[1720166256624,3.9583,126.71,126.62,20.17]
[1720166256925,3.9583,126.71,126.63,0.17]
[1720166257593,3.9583,126.71,126.63,100.17]
[1720166257803,3.9583,126.71,126.64,20.0]
[1720166260610,3.9583,126.71,126.65,0.17]
[1720166261195,3.9583,126.71,126.65,100.17]
[1720166261390,1.3147,126.72,126.66,20.0]
[1720166261795,1.3147,126.72,126.67,0.17]
[1720166262321,1.3147,126.72,126.67,100.17]
[1720166262537,1.3147,126.72,126.68,20.0]
[1720166263026,3.9583,126.74,126.68,20.0]
[1720166263317,1.3147,126.75,126.69,119.9019]
[1720166263517,1.3147,126.75,126.7,20.0]
[1720166264217,1.3147,126.75,126.66,20.0]
[1720166264425,1.3147,126.75,126.67,100.17]
[1720166264629,1.3147,126.75,126.68,20.0]
[1720166265205,1.3147,126.75,126.69,0.17]
[1720166265405,1.3147,126.75,126.68,20.0]
[1720166265609,1.3147,126.75,126.66,20.0]
[1720166266628,0.8599673,126.74,126.63,116.062954]
[1720166266926,0.8599673,126.74,126.63,109.55280864]
[1720166267705,4.8182673,126.73,126.63,109.55280864]
[1720166267924,1.3147,126.72,126.6,100.0]
[1720166268102,1.3147,126.72,126.59,15.10611128]
[1720166268103,0.8599673,126.71,126.59,15.10611128]
[1720166268299,0.8599673,126.7,126.6,4.818268]
[1720166268503,0.8599673,126.7,126.58,131.79832394]
[1720166268730,0.8599673,126.7,126.58,123.89832394]
[1720166268907,0.8599673,126.7,126.59,3.9583]
[1720166269225,0.8599673,126.71,126.59,3.9583]
[1720166269527,0.8599673,126.7,126.59,3.9583]
[1720166269709,0.8599673,126.7,126.58,123.89832394]
[1720166270034,0.8599673,126.7,126.58,28.02662394]
[1720166270831,0.8599673,126.7,126.59,20.17]
[1720166271704,2.1746673,126.72,126.6,100.0]
[1720166271908,2.1746673,126.72,126.61,20.17]
[1720166274530,2.1746673,126.72,126.62,20.0]
[1720166274832,5.443,126.71,126.62,20.0]
[1720166275126,0.8599673,126.7,126.59,20.0]
[1720166275336,0.8599673,126.7,126.6,0.17]
[1720166276648,1.3147,126.69,126.6,0.17]
[1720166276849,0.8599673,126.68,126.6,0.17]
[1720166280332,2.1746673,126.69,126.6,100.17]
[1720166280636,2.1746673,126.69,126.62,35.96]
[1720166280955,1.3147,126.69,126.63,20.0]
[1720166283833,1.3147,126.69,126.6,35.96]
[1720166284031,0.8599673,126.68,126.6,35.96]
[1720166284336,1.3147,126.69,126.6,35.96]
[1720166284541,1.3147,126.69,126.61,100.0]
[1720166284743,1.3147,126.69,126.62,35.96]
[1720166285356,1.3147,126.69,126.63,100.0]
[1720166285661,1.3147,126.69,126.64,55.96]
[1720166286336,1.3147,126.69,126.64,20.0]
[1720166286537,1.3147,126.69,126.61,20.0]
[1720166286740,3.9583,126.71,126.63,100.0]
[1720166286948,1.3147,126.72,126.65,100.0]
[1720166287155,5.273,126.75,126.68,100.0]
[1720166287363,5.273,126.75,126.69,0.17]
[1720166288365,5.273,126.75,126.69,20.17]
[1720166290563,5.273,126.75,126.7,35.96]
[1720166290741,5.273,126.75,126.71,0.17]
[1720166290937,5.273,126.75,126.71,20.0]
[1720166291336,5.273,126.75,126.68,35.96]
[1720166291658,5.273,126.75,126.69,20.0]
[1720166292041,5.273,126.75,126.7,0.17]
[1720166293147,5.273,126.75,126.69,20.0]
[1720166295543,5.273,126.75,126.66,35.96]
[1720166295868,0.8599673,126.74,126.67,20.0]
[1720166296347,0.8599673,126.74,126.66,20.0]
[1720166296549,5.273,126.75,126.66,20.0]
[1720166296753,0.8599673,126.74,126.66,20.0]
[1720166298147,0.8599673,126.73,126.65,20.0]
[1720166298358,5.273,126.75,126.66,35.96]
[1720166298677,0.8599673,126.74,126.66,35.96]
[1720166298964,5.273,126.75,126.66,35.96]
[1720166299365,5.273,126.75,126.67,0.17]
[1720166299678,5.273,126.75,126.67,20.17]
[1720166301269,5.273,126.75,126.67,0.17]
[1720166304061,0.8599673,126.74,126.66,20.0]
[1720166304247,0.8599673,126.73,126.64,20.0]
[1720166305065,5.273,126.72,126.61,16.32931186]
[1720166305245,0.8599673,126.71,126.61,7.84510058]
[1720166305459,6.1329673,126.72,126.61,7.84510058]
[1720166305953,6.1329673,126.72,126.61,14.05385788]
[1720166306157,6.1329673,126.72,126.61,50.01385788]
[1720166306865,0.8599673,126.71,126.61,50.01385788]
[1720166307453,0.8599673,126.71,126.62,20.17]
[1720166310270,0.8599673,126.71,126.62,20.0]
[1720166310472,0.8599673,126.7,126.62,20.0]
[1720166310655,0.8599673,126.7,126.61,35.96]
[1720166311469,0.8599673,126.71,126.61,35.96]
[1720166311659,0.8599673,126.7,126.61,35.96]
[1720166312559,0.8599673,126.71,126.61,35.96]
[1720166312873,0.8599673,126.7,126.61,35.96]
[1720166313683,0.8599673,126.7,126.59,6.49990101]
[1720166313886,0.8599673,126.7,126.6,20.0]
[1720166314676,0.8599673,126.71,126.6,20.0]
[1720166314877,0.8599673,126.7,126.61,0.17]
[1720166315759,0.8599673,126.71,126.61,0.17]
[1720166315962,0.8599673,126.71,126.61,36.13]
[1720166317090,0.8599673,126.7,126.61,36.13]
[1720166318089,0.8599673,126.71,126.61,36.13]
[1720166318383,0.8599673,126.7,126.61,36.13]
[1720166319276,0.8599673,126.71,126.61,36.13]
[1720166319574,0.8599673,126.7,126.61,36.13]
[1720166320471,0.8599673,126.71,126.61,36.13]
[1720166320686,0.8599673,126.7,126.61,36.13]
[1720166321086,0.8599673,126.71,126.61,36.13]
[1720166321391,5.273,126.72,126.61,36.13]
[1720166321392,5.273,126.72,126.63,100.0]
[1720166321580,5.273,126.72,126.64,20.17]
[1720166322171,5.273,126.72,126.65,100.0]
[1720166322373,5.273,126.72,126.66,0.17]
[1720166322567,5.273,126.72,126.66,20.17]
[1720166322768,5.273,126.72,126.66,20.0]
[1720166323279,5.273,126.72,126.64,20.0]
[1720166323473,5.273,126.72,126.65,0.17]
[1720166325689,5.273,126.72,126.65,136.13]
[1720166325991,5.273,126.75,126.67,135.96]
[1720166326187,5.273,126.75,126.68,20.17]
[1720166332999,5.273,126.75,126.69,135.96]
[1720166333308,5.273,126.75,126.7,0.17]
[1720166333906,5.273,126.75,126.73,17.95]
[1720166336381,6.1309673,126.79,126.74,17.95]
[1720166336691,6.1309673,126.79,126.76,17.95]
[1720166337096,51.38316625,126.84,126.77,42.224]
[1720166337401,30.86863886,126.99,126.77,42.224]
[1720166337402,31.588942,126.94,126.91,100.0]
[1720166337588,0.1724613,127.02,126.95,100.0]
[1720166337790,0.1724613,127.02,127.01,35.74]
[1720166337993,0.1724613,127.02,126.97,200.0]
[1720166338182,0.1724613,127.02,126.98,6.316]
[1720166338384,0.1724613,127.02,127.01,35.74]
[1720166338900,0.1724613,127.02,127.01,35.91]
[1720166339382,0.1724613,127.02,127.01,55.91]
[1720166339590,0.1724613,127.02,127.01,99.27033334]
[1720166339813,0.04679818,127.12,127.01,20.0]
[1720166339990,0.04679818,127.12,126.98,6.146]
[1720166340388,0.04679818,127.12,126.9,212.81503702]
[1720166340389,7.2280673,127.04,126.9,212.81503702]
[1720166340592,7.2280673,127.04,126.95,7.8768]
[1720166340890,7.2280673,127.04,126.94,15.9527]
[1720166341707,7.2280673,127.04,126.91,225.23300734]
[1720166341995,7.2280673,127.04,126.92,0.17]
[1720166342887,7.2280673,127.04,126.92,1.64514007]
[1720166343481,0.17,127.03,126.92,1.56902123]
[1720166344095,16.6392,127.03,126.92,1.56902123]
[1720166344299,16.6392,127.03,126.92,9.43832123]
[1720166344596,16.6392,127.03,126.92,7.8693]
[1720166344982,16.6392,127.03,126.9,40.18]
[1720166345608,16.6392,127.03,126.91,100.0]
[1720166345805,16.4692,127.03,126.92,0.89923592]
[1720166345979,20.17,127.02,126.82,100.0]
[1720166346179,6.07,127.01,126.84,40.18]
[1720166346390,20.17,127.0,126.84,40.18]
[1720166346613,20.17,127.0,126.85,0.70206467]
[1720166346784,28.0444,127.0,126.85,0.70206467]
[1720166346983,28.0444,127.0,126.84,40.18]
[1720166347211,20.17,127.0,126.84,40.18]
[1720166347413,7.8747,126.99,126.84,40.18]
[1720166347721,28.0452,126.98,126.84,40.18]
[1720166347886,20.0,126.98,126.84,40.18]
[1720166348090,0.17,126.97,126.84,40.18]
[1720166348287,7.8764,126.96,126.81,6.1309673]
[1720166348487,20.0,126.95,126.81,6.1309673]
[1720166348799,0.17,126.94,126.81,6.1309673]
[1720166350408,20.0,126.95,126.81,6.1309673]
[1720166350703,7.8759,126.97,126.82,60.18]
[1720166351007,7.8759,126.97,126.81,6.1309673]
[1720166351008,6.5956,126.95,126.81,6.1309673]
[1720166351210,20.0,126.94,126.81,6.1309673]
[1720166351814,0.17,126.93,126.82,0.17]
[1720166352110,0.17,126.93,126.81,6.1309673]
[1720166352311,0.17,126.94,126.82,40.18]
[1720166352500,0.17,126.94,126.81,6.1309673]
[1720166353016,6.5956,126.95,126.84,100.0]
[1720166353314,6.5956,126.95,126.85,40.18]
[1720166354421,16.1173,126.94,126.85,40.18]
[1720166356213,7.8785,126.93,126.81,6.1309673]
[1720166356416,16.1173,126.94,126.81,6.1309673]
[1720166356718,16.1173,126.94,126.81,106.1309673]
[1720166356888,0.17,126.93,126.82,0.91734398]
[1720166357090,0.17,126.93,126.81,6.1309673]
[1720166357492,20.17,126.93,126.81,6.1309673]
[1720166358083,7.879,126.92,126.81,6.1309673]
[1720166358289,20.17,126.91,126.81,6.1309673]
[1720166358496,7.8794,126.92,126.81,6.1309673]
[1720166358712,20.0,126.91,126.81,6.1309673]
[1720166358915,0.17,126.9,126.81,6.1309673]
[1720166359099,6.0827,126.89,126.81,6.1309673]
[1720166363918,0.17,126.88,126.81,6.1309673]
[1720166365617,28.0519,126.88,126.81,6.1309673]
[1720166365917,16.2718,126.86,126.81,6.1309673]
[1720166366220,0.17,126.85,126.81,6.1309673]
[1720166367017,5.5337,126.84,126.71,93.25496226]
[1720166367399,20.17,126.83,126.71,93.25496226]
[1720166370517,6.28,126.82,126.71,93.25496226]
[1720166370719,20.0,126.81,126.71,93.25496226]
[1720166371924,0.17,126.8,126.71,93.25496226]
[1720166372812,20.0,126.81,126.71,93.25496226]
[1720166373819,6.28,126.82,126.72,100.17]